fUSD/lending_fUSD_20241221
["ID","MTS","AMOUNT","RATE_DAILY","PERIOD"]
[346142595,1734743442402,-500.0,0.00023546,4]
[346142596,1734743442411,-500.0,0.00023546,4]
[346142597,1734743442421,-500.0,0.00023546,4]
[346142598,1734743442431,-164.4038732,0.00023546,4]
[346142599,1734743442618,-335.5961268,0.00023546,4]
[346142600,1734743442628,-359.5538732,0.00023546,4]
[346142601,1734743442643,-500.0,0.00023546,4]
[346142606,1734743443378,-450.0,0.00013,2]
[346142607,1734743443388,-72.40077981,0.00015,2]
[346142608,1734743443439,-427.59922019,0.00015,2]
[346142609,1734743443448,-2505.0961268,0.00023546,4]
[346142610,1734743443458,-227.75,0.00023546,4]
[346142611,1734743443467,-514.92752934,0.00023546,4]
[346142612,1734743443476,-500.0,0.00023546,4]
[346142613,1734743443485,-628.49878465,0.00023546,4]
[346142614,1734743443495,-482.69507533,0.00023546,4]
[346142615,1734743443504,-500.0,0.00023546,4]
[346142616,1734743443513,-500.0,0.00023546,4]
[346142617,1734743443523,-258.98,0.00023547,4]
[346142618,1734743443532,-500.0,0.00023547,4]
[346142619,1734743443542,-500.0,0.00023547,4]
[346142620,1734743443551,-500.0,0.00023547,4]
[346142621,1734743443560,-500.0,0.00023547,4]
[346142622,1734743443569,-500.0,0.00023547,4]
[346142623,1734743443578,-500.0,0.00023547,4]
[346142624,1734743443587,-544.8,0.00023547,4]
[346142625,1734743443597,-500.0,0.00023547,4]
[346142626,1734743443606,-500.0,0.00023547,4]
[346142627,1734743443615,-558.47,0.00023547,4]
[346142628,1734743443624,-500.0,0.00023547,4]
[346142629,1734743443635,-500.0,0.00023547,4]
[346142630,1734743443645,-500.0,0.00023547,4]
[346142631,1734743443654,-500.0,0.00023547,4]
[346142632,1734743443663,-506.47833856,0.00023547,4]
[346142633,1734743443673,-500.0,0.00023547,4]
[346142634,1734743443682,-500.0,0.00023547,4]
[346142635,1734743443691,-621.47,0.00023547,4]
[346142636,1734743443701,-500.0,0.00023547,4]
[346142637,1734743443710,-500.0,0.00023547,4]
[346142638,1734743443722,-500.0,0.00023547,4]
[346142639,1734743443731,-500.0,0.00023547,4]
[346142640,1734743443741,-712.77,0.00023547,4]
[346142641,1734743443750,-500.0,0.00023547,4]
[346142642,1734743443759,-500.0,0.00023547,4]
[346142643,1734743443769,-500.0,0.00023547,4]
[346142644,1734743443779,-500.0,0.00023547,4]
[346142645,1734743443791,-851.02,0.00023547,4]
[346142646,1734743443800,-500.0,0.00023547,4]
[346142647,1734743443810,-544.72,0.00023547,4]
[346142648,1734743443819,-548.1,0.00023547,4]
[346142649,1734743443829,-590.43,0.00023547,4]
[346142650,1734743443838,-529.28,0.00023547,4]
[346142651,1734743443847,-790.46,0.00023547,4]
[346142652,1734743443856,-809.2,0.00023547,4]
[346142653,1734743443865,-500.0,0.00023547,4]
[346142654,1734743443874,-500.0,0.00023547,4]
[346142655,1734743443884,-500.0,0.00023547,4]
[346142656,1734743443893,-481.33139425,0.00023547,4]
[346142657,1734743443905,-451.88977681,0.00023547,4]
[346142658,1734743443917,-148.95882894,0.00023547,4]
[346142659,1734743443926,-299.24117136,0.00023547,4]
[346142660,1734743443938,-200.75882864,0.00023547,4]
[346142661,1734743443948,-232.63123386,0.00023547,4]
[346142662,1734743443959,-267.36876614,0.00023547,4]
[346142663,1734743443968,-500.0,0.00023547,4]
[346142664,1734743443978,-209.08623386,0.00023547,4]
[346142665,1734743443990,-295.24627552,0.00023547,4]
[346142666,1734743444000,-500.0,0.00023547,4]
[346142667,1734743444009,-500.0,0.00023547,4]
[346142668,1734743444019,-500.0,0.00023547,4]
[346142669,1734743444029,-151.77033454,0.00023547,4]
[346142670,1734743444041,-348.22966546,0.00023547,4]
[346142671,1734743444050,-346.18864201,0.00023547,4]
[346142672,1734743444059,-884.59,0.00023547,4]
[346142673,1734743444069,-487.41464819,0.00023547,4]
[346142675,1734743446307,-12.58535181,0.00023547,4]
[346142676,1734743446317,-428.53733534,0.00023547,4]
[346142677,1734743446326,-191.38728081,0.00023547,4]
[346142678,1734743446337,-281.0,0.00023547,4]
[346142679,1734743446423,-27.61271919,0.00023547,4]
[346142680,1734743446433,-594.54364925,0.00023547,4]
[346142681,1734743446485,-365.68635075,0.00023547,4]
[346142682,1734743446494,-341.22742774,0.00023547,4]
[346142683,1734743446505,-158.77257226,0.00023547,4]
[346142684,1734743446515,-159.5278676,0.00023547,4]
[346142685,1734743446605,-340.4721324,0.00023547,4]
[346142686,1734743446615,-500.0,0.00023547,4]
[346142687,1734743446624,-684.4044123,0.00023547,4]
[346142694,1734743571261,154.48,0.00010137,2]
[346142734,1734744631609,-711.6811421,0.000157,2]
[346142737,1734744631762,-4516.64545094,0.000157,2]
[346142738,1734744631771,-154.48,0.00017599,2]
[346142739,1734744631780,-4537.34039082,0.000189,2]
[346142740,1734744631789,-300.0,0.00019999,2]
[346142741,1734744631798,-838.2315261,0.0002,2]
[346142742,1734744631808,-532.8,0.00020342,2]
[346142743,1734744631817,-200.69602379,0.00021,7]
[346142744,1734744631826,-150.0,0.000216,4]
[346142745,1734744631834,-150.0,0.000216,4]
[346142746,1734744631843,-150.0,0.000216,4]
[346142747,1734744631852,-420.0,0.00021777,2]
[346142748,1734744631861,-420.63,0.00022135,2]
[346142749,1734744631870,-473.28,0.00022212,2]
[346142750,1734744631879,-250.0,0.00022254,2]
[346142751,1734744631888,-473.58229082,0.00022353,2]
[346142752,1734744631897,-473.58229082,0.00022366,2]
[346142753,1734744631906,-473.58229082,0.0002237,2]
[346142754,1734744631915,-200.0,0.00022373,2]
[346142755,1734744631925,-473.58229082,0.00022374,2]
[346142756,1734744631934,-200.0,0.00022374,2]
[346142757,1734744631943,-473.58229082,0.00022381,2]
[346142758,1734744631952,-473.58229082,0.00022383,2]
[346142759,1734744631962,-200.0,0.000224,2]
[346142760,1734744631971,-250.0,0.00022505,2]
[346142761,1734744631983,-1000.0,0.00022542,2]
[346142762,1734744631992,-160.28,0.00022563,2]
[346142763,1734744632002,-532.8,0.00022606,2]
[346142764,1734744632011,-184.1,0.00022778,2]
[346142765,1734744632020,-363.023,0.000228,2]
[346142766,1734744632030,-150.99,0.000228,2]
[346142767,1734744632039,-999.99,0.000228,2]
[346142768,1734744632048,-332.04,0.000228,2]
[346142769,1734744632058,-472.12,0.0002288,2]
[346142772,1734744632067,-615.949,0.00022899,2]
[346142773,1734744632077,-436.13,0.00022978,2]
[346142775,1734744632089,-436.13,0.00022978,2]
[346142777,1734744632099,-500.0,0.00022998,4]
[346142779,1734744632108,-500.0,0.00022998,4]
[346142781,1734744632117,-500.0,0.00022998,4]
[346142783,1734744632128,-645.02,0.00022998,4]
[346142784,1734744632137,-622.35,0.00022998,4]
[346142785,1734744632147,-500.0,0.00022998,4]
[346142786,1734744632156,-500.0,0.00022998,4]
[346142787,1734744632165,-500.0,0.00022999,4]
[346142788,1734744632175,-133.82230535,0.00022999,4]
[346142789,1734744632187,-218.07802334,0.00022999,4]
[346142790,1734744632197,-500.0,0.00022999,4]
[346142791,1734744632206,-500.0,0.00022999,4]
[346142792,1734744632215,-62368.4728571,0.00023,2]
[346142794,1734744632225,-200.0,0.00023,2]
[346142796,1734744632238,-762.38,0.00023041,2]
[346142798,1734744632248,-203.52,0.00023078,2]
[346142800,1734744632257,-1250.0,0.0002314,4]
[346142802,1734744632266,-1000.0,0.00023173,2]
[346142804,1734744632275,-500.0,0.00023272,4]
[346142806,1734744632284,-500.0,0.00023272,4]
[346142808,1734744632295,-500.0,0.00023272,4]
[346142810,1734744632304,-500.0,0.00023272,4]
[346142812,1734744632313,-500.0,0.00023273,4]
[346142814,1734744632323,-567.52066547,0.00023287,4]
[346142815,1734744632332,-195.08,0.00023287,4]
[346142816,1734744632341,-500.0,0.00023287,2]
[346142817,1734744632351,-500.0,0.00023287,2]
[346142818,1734744632360,-500.0,0.00023287,2]
[346142819,1734744632369,-500.0,0.00023287,4]
[346142820,1734744632378,-500.0,0.00023287,4]
[346142821,1734744632387,-500.0,0.00023287,2]
[346142822,1734744632397,-500.0,0.00023287,2]
[346142823,1734744632406,-323.62,0.00023287,2]
[346142824,1734744632416,-509.97104542,0.00023287,4]
[346142825,1734744632425,-500.0,0.00023287,4]
[346142826,1734744632435,-500.0,0.00023287,4]
[346142827,1734744632445,-500.0,0.00023287,4]
[346142828,1734744632454,-500.0,0.00023287,4]
[346142829,1734744632463,-500.0,0.00023287,4]
[346142830,1734744632473,-500.0,0.00023287,4]
[346142831,1734744632486,-274.84,0.00023287,4]
[346142832,1734744632496,-150.0,0.00023288,5]
[346142833,1734744632505,-3000.0,0.00023288,7]
[346142834,1734744632515,-156.89982615,0.00023347,2]
[346142835,1734744632525,-60224.8173939,0.000235,3]
[346142836,1734744632536,-324.49585075,0.000235,3]
[346142837,1734744632548,-520.08645499,0.000235,3]
[346142838,1734744632559,-610.56,0.000235,3]
[346142839,1734744632572,-3799.37093081,0.000235,3]
[346142840,1734744632583,-2263.61359336,0.000235,3]
[346142841,1734744632597,-24533.19896097,0.000235,3]
[346142855,1734744637651,-37723.85681522,0.000235,3]
[346142856,1734744637660,-5000.0,0.0002354,2]
[346142857,1734744637670,-610.0964496,0.00023546,4]
[346142858,1734744637680,-200.0,0.00023547,2]
[346142859,1734744637689,-218.85,0.00023547,4]
[346142860,1734744637698,-2000.0,0.00023547,2]
[346142861,1734744637707,-200.0,0.00023547,2]
[346142862,1734744637717,-3000.0,0.00023547,2]
[346142863,1734744637727,-15626.4632206,0.00023553,2]
[346142864,1734744637741,-150.0,0.00023585,2]
[346142865,1734744637751,-1500.0,0.000236,2]
[346142866,1734744637760,-227.66219398,0.0002363,2]
[346142867,1734744637770,-13426.10166863,0.00023638,14]
[346142868,1734744637780,-500.0,0.00023639,4]
[346142869,1734744637790,-500.0,0.00023639,4]
[346142870,1734744637799,-500.0,0.00023639,4]
[346142871,1734744637809,-500.0,0.00023639,4]
[346142872,1734744637818,-500.0,0.00023639,4]
[346142873,1734744637828,-500.0,0.00023639,4]
[346142874,1734744637837,-500.0,0.00023639,4]
[346142875,1734744637847,-500.0,0.00023639,4]
[346142876,1734744637856,-500.0,0.00023639,4]
[346142877,1734744637865,-500.0,0.00023639,4]
[346142878,1734744637875,-500.0,0.00023639,4]
[346142879,1734744637884,-500.0,0.00023639,4]
[346142880,1734744637893,-544.57,0.00023639,4]
[346142881,1734744637902,-500.0,0.00023639,4]
[346142882,1734744637911,-544.57,0.00023639,4]
[346142883,1734744637921,-311.16,0.00023639,4]
[346142884,1734744637930,-544.57,0.00023639,4]
[346142885,1734744637940,-544.57,0.00023639,4]
[346142886,1734744637949,-500.0,0.00023639,4]
[346142887,1734744637960,-500.0,0.00023639,4]
[346142888,1734744637970,-500.0,0.00023639,4]
[346142889,1734744637980,-500.0,0.00023639,4]
[346142890,1734744637994,-672.85,0.00023639,4]
[346142891,1734744638004,-672.85,0.00023639,4]
[346142892,1734744638014,-672.85,0.00023639,4]
[346142893,1734744638023,-672.85,0.00023639,4]
[346142894,1734744638033,-500.0,0.00023639,4]
[346142895,1734744638042,-500.0,0.00023639,4]
[346142896,1734744638051,-711.4,0.00023639,4]
[346142897,1734744638061,-711.4,0.00023639,4]
[346142898,1734744638070,-711.4,0.00023639,4]
[346142899,1734744638082,-711.4,0.00023639,4]
[346142900,1734744638093,-500.0,0.00023639,4]
[346142901,1734744638103,-500.0,0.00023639,4]
[346142902,1734744638113,-500.0,0.00023639,4]
[346142903,1734744638123,-500.0,0.00023639,4]
[346142904,1734744638132,-500.0,0.00023639,4]
[346142905,1734744638141,-500.0,0.00023639,4]
[346142906,1734744638151,-500.0,0.00023639,4]
[346142907,1734744638161,-500.0,0.00023639,4]
[346142908,1734744638171,-1211.32,0.00023639,4]
[346142909,1734744638181,-1211.32,0.00023639,4]
[346142911,1734744638190,-1211.32,0.00023639,4]
[346142913,1734744638199,-1211.32,0.00023639,4]
[346142915,1734744638209,-500.0,0.00023639,4]
[346142917,1734744638218,-500.0,0.00023639,4]
[346142918,1734744638227,-500.0,0.00023639,4]
[346142920,1734744638239,-500.0,0.00023639,4]
[346142923,1734744638249,-500.0,0.00023639,4]
[346142924,1734744638258,-489.9766962,0.00023639,4]
[346142926,1734744638268,-500.0,0.00023639,4]
[346142929,1734744638278,-500.0,0.00023639,4]
[346142945,1734744638456,-500.0,0.00023639,4]
[346142948,1734744638467,-500.0,0.00023639,4]
[346142950,1734744638476,-500.0,0.00023639,4]
[346142952,1734744638486,-500.0,0.00023639,4]
[346142953,1734744638499,-500.0,0.00023639,4]
[346142955,1734744638508,-335.59397567,0.00023639,4]
[346142958,1734744638517,-500.0,0.00023639,4]
[346142960,1734744638527,-500.0,0.00023639,4]
[346142962,1734744638536,-500.0,0.00023639,4]
[346142964,1734744638546,-500.0,0.00023639,4]
[346142966,1734744638557,-3059.58,0.00023639,4]
[346142968,1734744638566,-3059.58,0.00023639,4]
[346142970,1734744638575,-3059.58,0.00023639,4]
[346142972,1734744638584,-3059.58,0.00023639,4]
[346142974,1734744638594,-500.0,0.00023639,4]
[346142976,1734744638603,-500.0,0.00023639,4]
[346142978,1734744638612,-500.0,0.00023639,4]
[346142980,1734744638621,-500.0,0.00023639,4]
[346142982,1734744638631,-500.0,0.00023639,4]
[346142984,1734744638640,-500.0,0.00023639,4]
[346142985,1734744638649,-500.0,0.00023639,4]
[346142986,1734744638658,-500.0,0.00023639,4]
[346142987,1734744638667,-500.0,0.00023639,4]
[346142988,1734744638676,-427.7,0.00023639,4]
[346142989,1734744638686,-500.0,0.00023639,4]
[346142990,1734744638695,-500.0,0.00023639,4]
[346142991,1734744638704,-500.0,0.00023639,4]
[346142993,1734744638712,-500.0,0.00023639,4]
[346142995,1734744638722,-500.0,0.00023639,4]
[346142997,1734744638731,-500.0,0.00023639,4]
[346142999,1734744638742,-521.96350061,0.00023639,4]
[346143001,1734744638751,-500.0,0.00023639,4]
[346143003,1734744638760,-500.0,0.00023639,4]
[346143005,1734744638768,-487.2421844,0.00023639,4]
[346143007,1734744638777,-500.0,0.00023639,4]
[346143008,1734744638786,-500.0,0.00023639,4]
[346143011,1734744638795,-500.0,0.00023639,4]
[346143013,1734744638804,-500.0,0.00023639,4]
[346143015,1734744638814,-535.18822718,0.00023639,4]
[346143016,1734744638823,-500.0,0.00023639,4]
[346143018,1734744638832,-500.0,0.00023639,4]
[346143020,1734744638841,-462.084,0.0002364,2]
[346143022,1734744638850,-848322.13499502,0.0002364,2]
[346143024,1734744638859,-189.22321762,0.00023652,2]
[346143027,1734744638868,-988.4,0.00023752,2]
[346143029,1734744638877,-2595.9315,0.0002376,2]
[346143030,1734744638886,-500.0,0.00023799,4]
[346143032,1734744638895,-500.0,0.00023799,4]
[346143035,1734744638904,-500.0,0.00023799,4]
[346143036,1734744638913,-500.0,0.00023799,4]
[346143038,1734744638922,-260.66100512,0.00023799,4]
[346143040,1734744638931,-500.0,0.00023799,4]
[346143043,1734744638941,-500.0,0.00023799,4]
[346143045,1734744638950,-500.0,0.00023799,4]
[346143047,1734744638959,-500.0,0.00023799,4]
[346143049,1734744638969,-500.0,0.00023799,4]
[346143051,1734744638978,-500.0,0.00023799,4]
[346143052,1734744638988,-500.0,0.00023799,4]
[346143054,1734744638997,-500.0,0.00023799,4]
[346143056,1734744639006,-500.0,0.00023799,4]
[346143058,1734744639015,-500.0,0.00023799,4]
[346143060,1734744639025,-500.0,0.00023799,4]
[346143062,1734744639034,-500.0,0.00023799,4]
[346143064,1734744639043,-500.0,0.00023799,4]
[346143066,1734744639052,-500.0,0.00023799,4]
[346143068,1734744639061,-500.0,0.00023799,4]
[346143071,1734744639071,-500.0,0.00023799,4]
[346143072,1734744639083,-500.0,0.00023799,4]
[346143075,1734744639092,-500.0,0.00023799,4]
[346143077,1734744639102,-500.0,0.00023799,4]
[346143079,1734744639111,-500.0,0.00023799,4]
[346143080,1734744639120,-500.0,0.00023799,4]
[346143082,1734744639130,-500.0,0.00023799,4]
[346143084,1734744639140,-500.0,0.00023799,4]
[346143086,1734744639150,-500.0,0.00023799,4]
[346143088,1734744639160,-500.43,0.00023799,4]
[346143090,1734744639170,-500.0,0.00023799,4]
[346143092,1734744639179,-500.0,0.00023799,4]
[346143094,1734744639188,-500.0,0.00023799,4]
[346143096,1734744639198,-500.0,0.00023799,4]
[346143098,1734744639207,-500.0,0.00023799,4]
[346143100,1734744639216,-744.75,0.000238,2]
[346143102,1734744639226,-2070.0,0.000238,4]
[346143104,1734744639236,-564.20527837,0.000238,2]
[346143106,1734744639246,-500.0,0.00023808,2]
[346143108,1734744639255,-153.0,0.00023813,2]
[346143110,1734744639264,-153.0,0.00023813,2]
[346143112,1734744639274,-623.67,0.00023816,4]
[346143114,1734744639283,-500.0,0.00023816,4]
[346143116,1734744639292,-164.683369,0.00023816,4]
[346143118,1734744639301,-500.0,0.00023816,4]
[346143120,1734744639311,-500.0,0.00023816,4]
[346143122,1734744639320,-500.0,0.00023816,4]
[346143124,1734744639330,-500.0,0.00023816,4]
[346143126,1734744639340,-708.05,0.00023816,4]
[346143128,1734744639349,-500.0,0.00023816,4]
[346143130,1734744639359,-500.0,0.00023816,4]
[346143132,1734744639369,-765.48,0.00023816,4]
[346143134,1734744639378,-500.0,0.00023816,4]
[346143136,1734744639387,-967.74,0.00023816,4]
[346143138,1734744639397,-712.49,0.00023816,4]
[346143140,1734744639407,-861.03,0.00023816,4]
[346143142,1734744639416,-500.0,0.00023816,4]
[346143144,1734744639425,-557.03847309,0.00023816,4]
[346143146,1734744639434,-500.0,0.00023816,4]
[346143148,1734744639444,-500.0,0.00023816,4]
[346143150,1734744639453,-500.0,0.00023817,4]
[346143152,1734744639462,-500.0,0.00023817,4]
[346143154,1734744639471,-500.61663353,0.00023817,4]
[346143156,1734744639481,-170.40650359,0.00023817,4]
[346143158,1734744639492,-500.0,0.00023817,4]
[346143160,1734744639501,-500.0,0.00023817,4]
[346143162,1734744639510,-500.0,0.00023817,4]
[346143164,1734744639519,-536.88052585,0.00023817,4]
[346143166,1734744639528,-500.0,0.00023817,4]
[346143168,1734744639538,-500.0,0.00023817,4]
[346143170,1734744639547,-500.0,0.00023817,4]
[346143173,1734744639556,-500.0,0.00023817,4]
[346143175,1734744639566,-500.0,0.00023817,4]
[346143177,1734744639580,-500.0,0.00023817,4]
[346143179,1734744639589,-500.0,0.00023817,4]
[346143180,1734744639598,-500.0,0.00023817,4]
[346143182,1734744639607,-500.0,0.00023817,4]
[346143184,1734744639616,-500.0,0.00023817,4]
[346143186,1734744639625,-500.0,0.00023817,4]
[346143188,1734744639635,-500.0,0.00023817,4]
[346143190,1734744639644,-519.07,0.00023817,4]
[346143192,1734744639654,-500.0,0.00023817,4]
[346143195,1734744639663,-500.0,0.00023817,4]
[346143196,1734744639672,-500.0,0.00023817,4]
[346143198,1734744639682,-500.0,0.00023817,4]
[346143200,1734744639691,-500.0,0.00023817,4]
[346143202,1734744639701,-500.8290296,0.00023817,4]
[346143204,1734744639710,-500.0,0.00023817,4]
[346143206,1734744639720,-500.0,0.00023817,4]
[346143208,1734744639729,-500.0,0.00023817,4]
[346143210,1734744639740,-500.0,0.00023817,4]
[346143212,1734744639749,-501.6026763,0.00023817,4]
[346143214,1734744639758,-500.0,0.00023817,4]
[346143216,1734744639767,-374.58878221,0.00023817,4]
[346143218,1734744639776,-500.0,0.00023817,4]
[346143220,1734744639785,-500.0,0.00023817,4]
[346143222,1734744639795,-500.0,0.00023817,4]
[346143224,1734744639804,-500.0,0.00023817,4]
[346143226,1734744639814,-522.03988936,0.00023817,4]
[346143228,1734744639823,-500.0,0.00023817,4]
[346143230,1734744639832,-500.0,0.00023817,4]
[346143232,1734744639841,-500.0,0.00023817,4]
[346143234,1734744639851,-466.37141203,0.00023817,4]
[346143236,1734744639859,-500.0,0.00023817,4]
[346143238,1734744639868,-500.0,0.00023817,4]
[346143240,1734744639877,-500.0,0.00023817,4]
[346143242,1734744639886,-500.0,0.00023817,4]
[346143244,1734744639895,-607.49034097,0.00023817,4]
[346143246,1734744639904,-500.0,0.00023817,4]
[346143247,1734744639913,-500.0,0.00023817,4]
[346143248,1734744639923,-500.0,0.00023817,4]
[346143249,1734744639932,-500.0,0.00023817,4]
[346143250,1734744639941,-500.0,0.00023817,4]
[346143251,1734744639951,-500.0,0.00023817,4]
[346143252,1734744639960,-500.0,0.00023817,4]
[346143253,1734744639969,-500.0,0.00023817,4]
[346143254,1734744639978,-500.0,0.00023817,4]
[346143255,1734744639988,-500.0,0.00023817,4]
[346143256,1734744639999,-500.0,0.00023817,4]
[346143257,1734744640009,-500.0,0.00023817,4]
[346143258,1734744640018,-500.0,0.00023817,4]
[346143259,1734744640027,-500.0,0.00023817,4]
[346143260,1734744640037,-500.0,0.00023817,4]
[346143261,1734744640046,-500.0,0.00023817,4]
[346143262,1734744640059,-921.23,0.00023817,4]
[346143263,1734744640072,-537.46,0.00023817,4]
[346143264,1734744640086,-500.0,0.00023817,4]
[346143265,1734744640098,-500.0,0.00023817,4]
[346143266,1734744640108,-500.0,0.00023817,4]
[346143267,1734744640118,-4246.81,0.00023817,2]
[346143268,1734744640131,-505.36913665,0.00023817,4]
[346143269,1734744640143,-551.96,0.00023817,4]
[346143270,1734744640155,-500.0,0.00023817,4]
[346143271,1734744640167,-500.0,0.00023817,4]
[346143272,1734744640179,-500.0,0.00023817,4]
[346143273,1734744640190,-500.0,0.00023817,4]
[346143274,1734744640202,-500.0,0.00023817,4]
[346143275,1734744640214,-500.0,0.00023817,4]
[346143276,1734744640226,-500.0,0.00023817,4]
[346143277,1734744640237,-500.0,0.00023817,4]
[346143278,1734744640249,-360.00295044,0.00023817,4]
[346143279,1734744640259,-500.0,0.00023817,4]
[346143280,1734744640269,-543.51,0.00023817,4]
[346143281,1734744640280,-500.0,0.00023817,4]
[346143282,1734744640292,-500.0,0.00023817,4]
[346143283,1734744640304,-500.0,0.00023817,4]
[346143284,1734744640315,-500.0,0.00023817,4]
[346143285,1734744640328,-500.0,0.00023817,4]
[346143286,1734744640339,-257.92459868,0.00023817,4]
[346143287,1734744640351,-500.0,0.00023817,4]
[346143288,1734744640364,-198.92351467,0.00023817,4]
[346143289,1734744640376,-500.0,0.00023817,4]
[346143290,1734744640388,-500.0,0.00023817,4]
[346143291,1734744640401,-500.0,0.00023817,4]
[346143292,1734744640413,-500.0,0.00023817,4]
[346143293,1734744640424,-500.0,0.00023817,4]
[346143294,1734744640434,-921.22,0.00023817,4]
[346143295,1734744640448,-500.0,0.00023817,4]
[346143296,1734744640460,-500.0,0.00023817,4]
[346143297,1734744640472,-500.0,0.00023817,4]
[346143298,1734744640484,-500.0,0.00023817,4]
[346143299,1734744640498,-500.0,0.00023817,4]
[346143300,1734744640510,-500.0,0.00023817,4]
[346143301,1734744640521,-543.87472014,0.00023817,4]
[346143302,1734744640533,-531.65740617,0.00023817,4]
[346143303,1734744640545,-503.26053567,0.00023817,4]
[346143304,1734744640556,-542.49398957,0.00023817,4]
[346143305,1734744640568,-291.73740681,0.00023817,4]
[346143306,1734744640579,-500.0,0.00023817,4]
[346143307,1734744640590,-500.0,0.00023817,4]
[346143308,1734744640601,-500.0,0.00023818,4]
[346143309,1734744640613,-544.57,0.00023818,4]
[346143310,1734744640623,-500.0,0.00023818,4]
[346143311,1734744640633,-672.85,0.00023818,4]
[346143312,1734744640644,-711.4,0.00023818,4]
[346143313,1734744640654,-500.0,0.00023818,4]
[346143314,1734744640667,-500.0,0.00023818,4]
[346143315,1734744640680,-1211.32,0.00023818,4]
[346143316,1734744640692,-500.0,0.00023818,4]
[346143317,1734744640703,-500.0,0.00023818,4]
[346143318,1734744640713,-500.0,0.00023818,4]
[346143319,1734744640723,-3059.58,0.00023818,4]
[346143320,1734744640733,-500.0,0.00023818,4]
[346143321,1734744640746,-141236.14649487,0.00023819,2]
[346143322,1734744640757,-150.0,0.00023836,5]
[346143323,1734744640768,-8764.62723395,0.00023863,3]
[346143324,1734744640780,-1394830.26895964,0.00023863,3]
[346143325,1734744640792,-38893.0,0.00023863,2]
[346143326,1734744640802,-32148.0,0.00023863,2]
[346143327,1734744640813,-500.0,0.00023898,4]
[346143328,1734744640823,-500.0,0.00023898,4]
[346143329,1734744640833,-357.54844907,0.00023899,4]
[346143330,1734744640844,-455.9756725,0.000239,4]
[346143331,1734744640854,-100845.80691786,0.000239,2]
[346143332,1734744640864,-156.89982615,0.000239,2]
[346143333,1734744640875,-373052.09912842,0.000239,2]
[346143334,1734744640885,-165.36622621,0.000239,7]
[346143335,1734744640896,-165.36,0.000239,7]
[346143336,1734744640907,-165.36622621,0.000239,7]
[346143337,1734744640918,-165.36622621,0.000239,7]
[346143338,1734744640929,-165.36,0.000239,7]
[346143339,1734744640940,-29652.374775,0.000239,2]
[346143340,1734744640951,-335304.0,0.00023922,2]
[346143341,1734744640961,-2110.0,0.0002395,2]
[346143342,1734744640971,-250.0,0.00023966,2]
[346143343,1734744640982,-201.0,0.00023966,2]
[346143344,1734744640995,-162.0,0.00023966,2]
[346143345,1734744641008,-162.0,0.00023966,2]
[346143346,1734744641019,-162.0,0.00023966,2]
[346143347,1734744641030,-162.0,0.00023966,2]
[346143348,1734744641041,-162.0,0.00023966,2]
[346143349,1734744641052,-162.0,0.00023966,2]